bitfinex/quotes_SOLUSD_20241117
["timestamp","ask_amount","ask_price","bid_price","bid_amount"]
[1731862587784,0.21916462,234.53,234.49,10.6612]
[1731862589464,0.21916462,234.53,234.44,11.77375683]
[1731862589465,23.99604862,234.51,234.44,10.6634]
[1731862589669,0.21916462,234.49,234.44,14.9288]
[1731862590475,0.21916462,234.49,234.44,10.6634]
[1731862591859,0.21916462,234.47,234.42,4.2658]
[1731862592787,0.21916462,234.47,234.39,28.19515683]
[1731862593084,0.21916462,234.47,234.4,14.9317]
[1731862597379,11.77375683,234.54,234.5,162.9]
[1731862597679,11.77375683,234.54,234.45,11.77375683]
[1731862597887,16.03705683,234.56,234.47,11.77375683]
[1731862598889,0.09367462,234.53,234.48,4.2647]
[1731862599072,0.21916462,234.53,234.48,4.2647]
[1731862599690,0.21916462,234.54,234.48,4.2647]
[1731862599893,0.21916462,234.54,234.41,20.1]
[1731862599894,0.34465462,234.49,234.42,4.2657]
[1731862600189,0.21916462,234.45,234.41,14.9309]
[1731862603777,0.21916462,234.45,234.41,10.6649]
[1731862604126,0.21916462,234.43,234.39,4.2662]
[1731862604970,0.21916462,234.43,234.36,17.83615683]
[1731862605170,0.21916462,234.43,234.37,14.9335]
[1731862605882,0.21916462,234.41,234.37,10.6668]
[1731862606082,0.09367462,234.39,234.37,10.6668]
[1731862606380,0.21916462,234.39,234.37,10.6668]
[1731862606896,0.21916462,234.38,234.33,16.041057]
[1731862607105,0.21916462,234.38,234.32,10.6691]
[1731862607278,0.21916462,234.38,234.34,11.77375683]
[1731862607279,0.12549,234.38,234.34,11.77375683]
[1731862608382,4.2648,234.48,234.43,162.9]
[1731862608593,11.77375683,234.47,234.39,11.77375683]
[1731862609203,0.09367462,234.46,234.39,11.77375683]
[1731862609709,0.21916462,234.46,234.4,14.9317]
[1731862611082,0.21916462,234.46,234.38,20.0]
[1731862611083,0.09367462,234.44,234.38,20.0]
[1731862611281,0.21916462,234.44,234.38,20.0]
[1731862611705,0.12549,234.44,234.41,11.77375683]
[1731862611908,6.1359,234.54,234.43,11.77375683]
[1731862612110,10.3996,234.54,234.47,11.77375683]
[1731862612809,10.3996,234.54,234.45,11.77375683]
[1731862613000,11.77375683,234.53,234.45,11.77375683]
[1731862613193,4.51498,234.52,234.45,11.77375683]
[1731862614114,0.09367462,234.51,234.45,16.03895683]
[1731862616106,0.09367462,234.51,234.45,26.70215683]
[1731862617106,0.09367462,234.51,234.47,11.77375683]
[1731862618792,0.12549,234.52,234.47,16.03855683]
[1731862619009,0.25098,234.54,234.49,11.77375683]
[1731862619394,0.21916462,234.53,234.49,11.77375683]
[1731862619622,0.12549,234.52,234.49,11.77375683]
[1731862620099,0.12549,234.5,234.45,11.77375683]
[1731862620307,0.09367462,234.47,234.42,26.70375683]
[1731862620609,0.25098,234.46,234.42,26.70375683]
[1731862621609,0.25098,234.46,234.42,10.6642]
[1731862621796,0.12549,234.44,234.39,4.2662]
[1731862622706,0.09367462,234.42,234.38,10.6663]
[1731862622915,0.12549,234.42,234.38,26.70655683]
[1731862624119,0.12549,234.42,234.4,11.77375683]
[1731862625323,0.34465462,234.49,234.41,14.931]
[1731862625499,0.34465462,234.49,234.43,11.77375683]
[1731862625914,0.34465462,234.49,234.41,26.70475683]
[1731862626108,16.38301145,234.49,234.41,14.931]
[1731862626316,0.12549,234.45,234.41,14.931]
[1731862627017,0.34465462,234.45,234.41,14.931]
[1731862628003,5.3023,234.63,234.51,162.9]
[1731862628206,11.77375683,234.59,234.5,11.77375683]
[1731862628408,0.09367462,234.58,234.5,11.77375683]
[1731862629025,0.09367462,234.58,234.51,4.2642]
[1731862629326,0.09367462,234.56,234.51,4.2642]
[1731862629524,0.09367462,234.54,234.53,0.1]
[1731862630108,0.09367462,234.54,234.52,0.1]
[1731862630302,0.09367462,234.54,234.51,0.1]
[1731862630303,11.77375683,234.55,234.51,0.1]
[1731862631223,10.6557,234.62,234.53,0.1]
[1731862631429,11.77375683,234.58,234.51,0.2]
[1731862631808,0.34465462,234.57,234.51,0.2]
[1731862632223,0.34465462,234.57,234.53,0.1]
[1731862633732,4.60785462,234.57,234.53,0.1]
[1731862634024,4.60785462,234.57,234.51,0.2]
[1731862634206,4.60785462,234.57,234.51,0.1]
[1731862634411,0.34465462,234.53,234.48,10.6615]
[1731862634624,0.34465462,234.53,234.51,0.1]
[1731862635329,0.34465462,234.53,234.49,0.1]
[1731862635828,0.21916462,234.53,234.51,0.1]
[1731862636031,0.12549,234.55,234.49,10.8614]
[1731862636222,0.12549,234.53,234.49,0.2]
[1731862636802,0.12549,234.53,234.51,0.1]
[1731862637115,0.12549,234.53,234.52,0.1]
[1731862638420,76.67634342,234.73,234.56,0.1]
[1731862638421,10.6535,234.67,234.56,0.1]
[1731862638612,0.74143565,234.77,234.62,0.1]
[1731862638613,4.2614,234.66,234.62,0.1]
[1731862639415,0.09367462,234.63,234.58,0.1]
[1731862639622,0.09367462,234.61,234.58,0.1]
[1731862640026,0.21916462,234.59,234.58,0.1]
[1731862640331,0.34465462,234.59,234.58,0.1]
[1731862641658,0.34465462,234.58,234.57,0.1]
[1731862641821,0.12549,234.56,234.54,0.1]
[1731862642516,0.21916462,234.57,234.54,0.1]
[1731862642717,0.12549,234.56,234.54,0.1]
[1731862644629,0.12549,234.56,234.53,0.1]
[1731862645937,0.12549,234.56,234.54,0.1]
[1731862649037,0.12549,234.56,234.53,0.1]
[1731862649219,0.21916462,234.53,234.5,0.1]
[1731862649415,0.25098,234.52,234.49,0.1]
[1731862649623,0.34465462,234.51,234.5,0.1]
[1731862651940,0.34465462,234.5,234.49,0.1]
[1731862659829,18.85341428,234.58,234.53,0.1]
[1731862660029,0.25098,234.57,234.53,0.1]
[1731862660348,10.6543,234.65,234.56,0.1]
[1731862660349,18.85341428,234.62,234.56,0.1]
[1731862660852,18.85341428,234.62,234.58,0.1]
[1731862661025,0.09367462,234.61,234.56,0.1]
[1731862661825,4.35607462,234.61,234.56,0.1]
[1731862662026,0.09367462,234.59,234.56,0.1]
[1731862666834,0.09367462,234.59,234.57,0.1]
[1731862670454,0.09367462,234.59,234.55,0.1]
[1731862670748,0.34465462,234.57,234.54,0.1]
[1731862671143,0.34465462,234.57,234.56,0.2]
[1731862671534,0.34465462,234.57,234.56,11.97940687]
[1731862672134,0.12549,234.57,234.56,11.97940687]
[1731862673849,4.2621,234.63,234.61,0.1]
[1731862674045,4.2621,234.63,234.58,0.2]
[1731862674253,4.2621,234.63,234.56,16.04260687]
[1731862674254,11.77940687,234.64,234.6,0.1]
[1731862674551,4.2617,234.65,234.6,0.1]
[1731862674857,0.09367462,234.64,234.6,0.1]
[1731862675038,0.09367462,234.64,234.61,0.1]
[1731862675446,0.09367462,234.62,234.6,0.1]
[1731862675657,0.21916462,234.59,234.58,0.1]
[1731862675857,0.34465462,234.59,234.58,0.1]
[1731862676042,0.21916462,234.58,234.55,0.2]
[1731862676235,0.09367462,234.54,234.53,0.1]
[1731862676435,0.34465462,234.54,234.53,0.1]
[1731862676745,0.12549,234.57,234.55,0.1]
[1731862676949,0.25098,234.57,234.55,0.2]
[1731862677151,0.25098,234.57,234.55,0.1]
[1731862677336,0.25098,234.57,234.55,0.2]
[1731862677536,0.21916462,234.58,234.55,0.2]
[1731862677763,0.12549,234.57,234.55,0.2]
[1731862678137,0.12549,234.57,234.55,0.1]
[1731862678345,0.12549,234.57,234.55,0.2]
[1731862679462,0.12549,234.57,234.55,0.1]
[1731862679757,0.12549,234.57,234.55,0.2]
[1731862680347,0.21916462,234.54,234.53,0.1]
[1731862680548,0.34465462,234.54,234.53,0.1]
[1731862681551,0.09367462,234.52,234.51,0.2]
[1731862681760,0.34465462,234.52,234.51,0.2]
[1731862682256,0.25098,234.57,234.55,0.2]
[1731862682558,0.25098,234.57,234.49,0.1]
[1731862682559,0.25098,234.55,234.49,0.1]
[1731862682764,0.34465462,234.52,234.49,0.1]
[1731862683368,0.34465462,234.52,234.48,21.7755]
[1731862683668,0.34465462,234.52,234.46,10.7623]
[1731862683669,0.09367462,234.5,234.46,0.1]
[1731862683856,28.38563862,234.52,234.43,21.8755]
[1731862683857,0.34465462,234.48,234.43,21.9755]
[1731862684168,4.2641,234.52,234.43,21.9755]
[1731862684169,0.34465462,234.46,234.43,21.7755]
[1731862684366,0.34465462,234.46,234.41,0.1]
[1731862684547,4.2641,234.52,234.38,0.1]
[1731862684548,0.09367462,234.42,234.38,0.1]
[1731862684872,0.21916462,234.36,234.31,13.26031213]
[1731862685169,0.12549,234.31,234.3,21.8755]
[1731862685463,0.12549,234.35,234.32,0.1]
[1731862685675,0.12549,234.35,234.33,0.1]
[1731862685847,0.34465462,234.34,234.33,0.1025438]
[1731862686162,24.12153862,234.34,234.33,0.1025438]
[1731862686565,0.34465462,234.34,234.33,0.1025438]
[1731862689462,0.09367462,234.32,234.31,0.2]
[1731862689662,0.25098,234.33,234.31,0.2]
[1731862691280,0.12549,234.31,234.3,0.1]
[1731862692855,0.12549,234.31,234.3,0.12952344]
[1731862693252,11.77940687,234.37,234.33,0.1]
[1731862693458,23.902374,234.38,234.33,0.12666389]
[1731862693661,11.77940687,234.39,234.35,0.1]
[1731862694057,0.09367462,234.4,234.35,0.1]
[1731862695082,0.09367462,234.36,234.35,0.1]
[1731862695255,0.34465462,234.36,234.35,0.1]
[1731862696576,0.09367462,234.34,234.33,0.02666389]
[1731862696762,0.34465462,234.34,234.33,0.02666389]
[1731862697979,0.25098,234.34,234.33,0.02666389]
[1731862698360,0.34465462,234.34,234.33,0.02666389]
[1731862703582,0.12549,234.33,234.32,0.2]
[1731862703778,0.34465462,234.33,234.32,0.2]
[1731862703986,0.21916462,234.32,234.3,0.1]
[1731862704279,0.34465462,234.31,234.3,0.2]
[1731862704580,10.6634,234.45,234.3,0.2]
[1731862704581,0.25098,234.37,234.35,0.1]
[1731862704790,0.09367462,234.36,234.35,0.1]
[1731862706585,0.09367462,234.36,234.33,0.1]
[1731862706779,23.87055862,234.34,234.3,0.1]
[1731862706986,0.09367462,234.32,234.3,0.1]
[1731862707382,0.25098,234.33,234.32,0.2]
[1731862707588,0.25098,234.33,234.32,0.22059646]
[1731862707886,0.34465462,234.33,234.32,0.02059646]
[1731862709203,0.34465462,234.33,234.32,0.12059646]
[1731862709571,0.34465462,234.33,234.32,0.02059646]
[1731862710696,0.09367462,234.32,234.31,0.1]
[1731862714186,0.09367462,234.32,234.3,0.1]
[1731862714390,0.09367462,234.32,234.31,0.1]
[1731862715387,0.09367462,234.32,234.3,0.1]
[1731862715593,0.09367462,234.32,234.31,0.1]
[1731862716726,0.09367462,234.32,234.3,0.1]
[1731862717003,0.09367462,234.32,234.31,0.1]
[1731862718672,10.6628,234.46,234.34,0.1]
[1731862718877,10.6628,234.46,234.36,0.1]
[1731862719078,7.55379523,234.43,234.37,0.1]
[1731862719500,7.55379523,234.43,234.38,0.1]
[1731862719878,0.09367462,234.42,234.4,0.1]
[1731862720283,0.21916462,234.41,234.4,0.1]
[1731862720501,0.34465462,234.41,234.4,0.1]
[1731862721080,22.05765005,234.56,234.4,0.2]
[1731862721284,7.55379523,234.46,234.4,0.1]
[1731862722096,7.55379523,234.46,234.42,0.1]
[1731862722298,7.55379523,234.48,234.42,0.2]
[1731862723306,0.09367462,234.47,234.42,0.2]
[1731862723799,0.09367462,234.45,234.42,0.2]
[1731862723982,0.25098,234.44,234.42,0.2]
[1731862724402,0.09367462,234.43,234.42,0.1]
[1731862724579,0.34465462,234.43,234.42,0.1]
[1731862725197,0.25098,234.43,234.42,0.1]
[1731862726102,0.12549,234.48,234.45,0.1]
[1731862726307,24.027864,234.5,234.45,0.1]
[1731862726491,0.09367462,234.49,234.45,0.1]
[1731862727710,4.35837462,234.49,234.45,0.1]
[1731862728010,0.34465462,234.46,234.45,0.1]
[1731862728207,0.21916462,234.44,234.43,0.1]
[1731862728411,0.34465462,234.44,234.43,0.1]
[1731862729106,0.21916462,234.43,234.4,0.1]
[1731862729316,0.34465462,234.41,234.4,0.1]
[1731862729812,0.34465462,234.41,234.4,0.2]
[1731862730411,0.34465462,234.41,234.4,0.1]
[1731862732303,0.34465462,234.41,234.4,0.2]
[1731862733590,0.25098,234.41,234.4,0.2]
[1731862740106,0.09367462,234.44,234.4,0.2]
[1731862740288,0.34465462,234.44,234.43,0.1]
[1731862740722,0.34465462,234.44,234.42,0.1]
[1731862741300,0.34465462,234.44,234.43,0.1]
[1731862741896,35.94083385,234.44,234.41,0.1]
[1731862743203,28.38703862,234.44,234.41,0.1]
[1731862743607,24.12153862,234.44,234.41,0.2]
[1731862743795,0.34465462,234.44,234.43,0.1]
[1731862747323,0.34465462,234.44,234.43,0.2]
[1731862752014,0.09367462,234.48,234.43,0.2]
[1731862752210,23.87055862,234.48,234.43,0.2]
[1731862753224,23.87055862,234.48,234.43,0.1]
[1731862753521,23.776884,234.44,234.38,0.1]
[1731862753728,23.776884,234.44,234.4,0.1]
[1731862753911,0.12549,234.43,234.4,0.1]
[1731862754105,0.34465462,234.41,234.4,0.1]
[1731862754850,46.78292431,234.41,234.07,87.63423466]
[1731862755129,0.1,233.96,233.85,97.3]
[1731862755324,23.776884,234.03,233.81,0.1]
[1731862755504,23.776884,234.03,233.62,0.1]
[1731862755505,0.1,233.9,233.62,11.69787373]
[1731862755706,7.55379523,233.72,233.63,10.7006]
[1731862755923,147.41406657,233.89,233.63,10.7006]
[1731862755924,7.55379523,233.68,233.63,10.7006]
[1731862756122,88.3658416,233.71,233.63,10.7006]
[1731862756123,70.74820559,233.67,233.63,10.8006]
[1731862756431,117.92519219,233.66,233.63,10.7006]
[1731862756611,117.92519219,233.66,233.36,12.78]
[1731862756612,70.74820559,233.65,233.36,12.78]
[1731862756809,29.48887438,233.65,233.64,18.98468832]
[1731862757010,161.77035742,233.65,233.64,18.98468832]
[1731862757223,203.03755871,233.65,233.64,18.98468832]
[1731862757537,0.1,233.44,233.24,0.4906232]
[1731862757833,28.72422267,233.43,233.38,482.0]
[1731862758032,64.94429367,233.42,233.38,482.0]
[1731862758232,59.07575207,233.41,233.38,25.9174299]
[1731862758412,59.07575207,233.41,233.36,10.7128]
[1731862758413,23.65729394,233.4,233.36,10.7128]
[1731862758609,20.52468691,233.4,233.36,10.7128]
[1731862758809,97.19054789,233.39,233.36,10.7128]
[1731862759012,20.62468691,233.38,233.36,10.7128]
[1731862759316,0.1,233.36,233.33,6.5763]
[1731862759629,0.1,233.32,233.29,10.7162]
[1731862759816,19.08468832,233.34,233.29,10.7162]
[1731862760013,20.52468691,233.33,233.29,10.7162]
[1731862760228,18.98468832,233.4,233.29,10.7162]
[1731862760430,40.33310451,233.32,233.29,10.7162]
[1731862760811,40.33310451,233.32,233.3,20.0]
[1731862761106,19.08468832,233.4,233.3,20.0]
[1731862761313,0.1,233.35,233.31,10.7153]
[1731862761515,19.08468832,233.34,233.31,10.7153]
[1731862761710,0.1,233.38,233.31,10.7153]
[1731862761930,0.1,233.4,233.31,10.7153]
[1731862762315,0.1,233.38,233.31,10.7153]
[1731862762631,0.1,233.36,233.31,10.7153]
[1731862762938,0.2,233.38,233.32,20.0]
[1731862763231,0.1,233.47,233.36,18.98468832]
[1731862763532,21.88986222,233.56,233.3,24.027864]
[1731862763533,0.1,233.42,233.3,24.027864]
[1731862763716,0.1,233.42,233.35,18.98468832]
[1731862763923,0.1,233.44,233.36,23.776884]
[1731862764337,51.19513818,233.43,233.36,18.98468832]
[1731862764641,51.19513818,233.43,233.36,18.96468832]
[1731862764817,0.1,233.41,233.36,18.96468832]
[1731862765016,51.29513818,233.43,233.36,18.96468832]
[1731862765217,51.29513818,233.43,233.37,20.0]
[1731862765431,45.40208922,233.42,233.37,20.0]
[1731862766016,30.0,233.38,233.37,20.0]
[1731862766237,86.63313964,233.38,233.37,20.0]
[1731862766414,132.03522886,233.38,233.37,20.0]
[1731862766615,132.03522886,233.38,233.37,0.53880772]
[1731862766915,132.03522886,233.38,233.36,18.98468832]
[1731862767119,183.23036704,233.38,233.36,18.98468832]
[1731862767516,45.40208922,233.37,233.36,18.98468832]
[1731862767712,20.33036704,233.38,233.36,18.98468832]
[1731862768124,20.33036704,233.38,233.29,24.027864]
[1731862768330,20.33036704,233.38,233.35,2.59e-06]
[1731862768331,21.21530245,233.37,233.35,2.59e-06]
[1731862768628,0.1,233.44,233.34,20.0]
[1731862768629,0.1,233.4,233.34,20.0]
[1731862769261,0.1,233.35,233.11,70.0]
[1731862769418,0.1,233.33,233.18,17.133808]
[1731862769617,0.1,233.35,233.26,18.98468832]
[1731862769926,0.1,233.35,233.28,18.98468832]
[1731862770541,0.1,233.33,233.26,18.98468832]
[1731862770727,0.1,233.35,233.26,18.98468832]
[1731862770926,0.1,233.35,233.27,4.2868]
[1731862771534,0.8566078,233.48,233.27,4.2868]
[1731862771535,12.52227476,233.58,233.4,0.1]
[1731862771749,24.027864,233.56,233.42,0.1]
[1731862771919,12.52227476,233.58,233.48,0.1]
[1731862772124,18.98468832,233.49,233.48,0.1]
[1731862772321,18.98468832,233.53,233.52,0.2]
[1731862772520,17.124263,233.67,233.52,45.0675387]
[1731862772820,18.98468832,233.64,233.54,0.1]
[1731862773038,18.98468832,233.64,233.52,44.9675387]
[1731862773230,18.98468832,233.54,233.52,44.9675387]
[1731862773646,18.98468832,233.54,233.52,0.1]
[1731862775549,0.06982065,233.56,233.52,0.1]
[1731862775741,18.98468832,233.55,233.52,0.1]
[1731862775942,18.98468832,233.55,233.53,0.1]
[1731862776643,0.1,233.5,233.3,20.09367462]
[1731862776834,0.1,233.5,233.44,18.98468832]
[1731862777035,0.1,233.52,233.48,18.98468832]
[1731862777352,0.2,233.53,233.48,18.98468832]
[1731862777656,0.2,233.53,233.45,23.776884]
[1731862777947,0.2,233.53,233.47,23.776884]
[1731862778155,0.2,233.53,233.47,28.059984]
[1731862778447,0.2,233.53,233.44,29.69358832]
[1731862778650,0.2,233.53,233.44,14.9925]
[1731862778651,0.1,233.49,233.44,14.9925]
[1731862778842,0.1,233.52,233.44,33.97718832]
[1731862779953,0.1,233.51,233.45,23.776884]
[1731862780343,0.1,233.5,233.45,23.776884]
[1731862780959,0.1,233.5,233.45,28.060184]
[1731862781335,0.1,233.48,233.45,28.060184]
[1731862782433,0.2,233.51,233.45,28.060184]
[1731862783466,0.2,233.51,233.45,38.769084]
[1731862783630,0.2,233.51,233.45,57.75377232]
[1731862784554,0.02000001,233.5,233.45,57.75377232]
[1731862786345,0.02000001,233.5,233.47,18.98468832]
[1731862786758,0.02000001,233.5,233.45,38.769084]
[1731862786759,0.02000001,233.5,233.49,42.76157232]
[1731862787041,0.02000001,233.5,233.49,47.04437232]
[1731862788561,0.02000001,233.5,233.49,28.059684]
[1731862789657,0.09367462,233.63,233.49,28.059684]
[1731862789857,18.98468832,233.58,233.5,74.28193451]
[1731862790439,0.09367462,233.66,233.5,74.28193451]
[1731862790636,18.98468832,233.59,233.5,74.28193451]
[1731862791143,18.98468832,233.59,233.5,78.56433451]
[1731862792469,0.21916462,233.6,233.5,78.56433451]
[1731862792641,0.21916462,233.6,233.5,89.27093451]
[1731862792839,19.20385294,233.6,233.5,89.27093451]
[1731862793642,4.50006462,233.6,233.5,89.27093451]
[1731862794560,18.98468832,233.59,233.5,89.27093451]
[1731862794764,23.26568832,233.59,233.5,89.27093451]
[1731862797770,18.98468832,233.55,233.5,50.50505051]
[1731862797942,4.281,233.59,233.5,50.50505051]
[1731862797943,18.98468832,233.53,233.5,50.50505051]
[1731862799060,18.98468832,233.55,233.5,50.50505051]
[1731862799367,18.98468832,233.57,233.5,54.78755051]
[1731862800061,0.12549,233.57,233.5,54.78755051]
[1731862801177,4.2809,233.6,233.5,65.49415051]
[1731862801463,4.28,233.64,233.51,23.776884]
[1731862802357,19.01060115,233.6,233.51,42.78748515]
[1731862802666,19.01060115,233.58,233.51,23.776884]
[1731862803045,0.09367462,233.57,233.5,61.21165051]
[1731862803239,19.01060115,233.52,233.5,50.50505051]
[1731862803670,0.34465462,233.51,233.5,50.50505051]
[1731862804762,4.62705462,233.51,233.5,50.50505051]
[1731862805473,4.62705462,233.51,233.34,6.5863]
[1731862805474,19.01060115,233.41,233.34,6.5863]
[1731862805767,15.33315462,233.51,233.46,143.88939885]
[1731862805953,15.33315462,233.51,233.28,19.01060115]
[1731862806156,0.34465462,233.47,233.27,10.5486]
[1731862806342,0.34465462,233.47,233.26,76.78045051]
[1731862806343,0.34465462,233.43,233.26,50.50505051]
[1731862806964,24.12153862,233.41,233.26,50.50505051]
[1731862807157,0.34465462,233.41,233.26,50.50505051]
[1731862807344,19.01060115,233.36,233.26,69.51565166]
[1731862807664,19.01060115,233.4,233.3,19.01060115]
[1731862807840,4.2824,233.51,233.34,19.01060115]
[1731862808039,19.01060115,233.44,233.34,19.01060115]
[1731862808248,4.2824,233.51,233.36,19.01060115]
[1731862808465,19.01060115,233.45,233.37,23.776884]
[1731862808677,19.01060115,233.41,233.37,23.776884]
[1731862808841,19.01060115,233.42,233.37,23.776884]
[1731862809165,19.01060115,233.42,233.35,23.776884]
[1731862809570,23.29360115,233.48,233.37,19.01060115]
[1731862809756,4.2819,233.54,233.39,19.01060115]
[1731862810071,19.01060115,233.48,233.39,19.01060115]
[1731862811256,19.01060115,233.48,233.37,42.78748515]
[1731862811572,23.29360115,233.48,233.39,42.78748515]
[1731862811777,23.29360115,233.48,233.39,23.776884]
[1731862811982,23.29360115,233.48,233.34,10.5486]
[1731862811983,0.09367462,233.45,233.34,10.5486]
[1731862812150,19.01060115,233.44,233.34,10.5486]
[1731862812454,19.01060115,233.44,233.31,10.7152]
[1731862812455,19.01060115,233.42,233.31,10.7152]
[1731862812658,0.34465462,233.47,233.45,143.88939885]
[1731862812849,0.09367462,233.45,233.32,18.51060115]
[1731862813169,0.12549,233.43,233.31,10.7152]
[1731862813396,0.12549,233.43,233.32,19.01060115]
[1731862813672,19.01060115,233.42,233.33,20.0]
[1731862814053,4.2837,233.44,233.36,19.01060115]
[1731862814256,23.29430115,233.44,233.34,19.01060115]
[1731862814478,23.29430115,233.44,233.35,23.776884]
[1731862815673,4.2837,233.44,233.35,23.776884]
[1731862815872,23.29430115,233.44,233.35,23.776884]
[1731862816566,23.29430115,233.44,233.34,23.776884]
[1731862817093,19.01060115,233.46,233.34,42.78748515]
[1731862817373,0.12549,233.45,233.34,47.07298515]
[1731862818474,0.12549,233.43,233.32,19.01060115]
[1731862818684,0.12549,233.39,233.28,23.29720115]
[1731862818975,19.01060115,233.36,233.26,80.23325166]
[1731862819558,19.01060115,233.36,233.26,84.52025166]
[1731862819967,19.01060115,233.4,233.3,19.01060115]
[1731862820452,4.2846,233.39,233.3,19.01060115]
[1731862823081,19.01060115,233.38,233.3,19.01060115]
[1731862823772,19.01060115,233.42,233.32,19.01060115]
[1731862824478,19.01060115,233.42,233.34,19.01060115]
[1731862824979,19.01060115,233.46,233.36,19.01060115]
[1731862825279,19.03308388,233.48,233.38,19.03308388]
[1731862825573,0.09367462,233.47,233.38,19.03308388]
[1731862825770,0.09367462,233.44,233.36,19.03308388]
[1731862825968,19.03308388,233.45,233.36,19.03308388]
[1731862826178,19.03308388,233.45,233.33,15.0001]
[1731862826179,19.03308388,233.47,233.38,19.03308388]
[1731862826388,4.2833,233.46,233.38,19.03308388]
[1731862827757,4.2833,233.46,233.37,4.2849]
[1731862827758,4.2833,233.46,233.39,19.03136824]
[1731862827954,23.31406824,233.5,233.43,19.03136824]
[1731862828263,4.2822,233.53,233.45,19.03136824]
[1731862828562,4.2822,233.53,233.35,12.2469]
[1731862828563,4.282,233.54,233.47,19.03136824]
[1731862830062,23.31336824,233.54,233.45,29.74026824]
[1731862830261,23.31336824,233.54,233.45,34.02376824]
[1731862830952,4.282,233.54,233.47,19.03136824]
[1731862831586,23.31336824,233.54,233.45,29.74026824]
[1731862831883,23.31336824,233.54,233.45,34.02376824]
[1731862834379,19.03136824,233.52,233.43,19.03136824]
[1731862834577,19.03136824,233.5,233.41,19.03136824]
[1731862835564,23.31406824,233.5,233.42,4.2841]
[1731862840674,19.03136824,233.48,233.39,14.9958]
[1731862841868,4.2832,233.47,233.4,19.03136824]
[1731862842081,4.2832,233.47,233.39,14.9958]
[1731862844305,4.2832,233.47,233.4,19.03136824]
[1731862844481,19.03136824,233.5,233.41,20.0]
[1731862844670,0.12549,233.51,233.42,19.03136824]
[1731862845757,4.2826,233.5,233.42,19.03136824]
[1731862846476,23.31396824,233.5,233.41,24.2842]
[1731862846882,23.31396824,233.5,233.41,4.2842]
[1731862849274,19.03136824,233.48,233.4,19.03136824]
[1731862849601,19.03136824,233.48,233.39,10.7112]
[1731862849989,19.03136824,233.46,233.36,43.31636824]
[1731862850500,4.2835,233.45,233.36,43.31636824]
[1731862851007,19.03136824,233.44,233.36,19.03136824]
[1731862851300,19.03136824,233.44,233.35,10.7134]
[1731862851486,19.03136824,233.44,233.35,14.9988]
[1731862852202,19.03136824,233.4,233.32,19.03136824]
[1731862852379,19.03136824,233.4,233.3,19.03136824]
[1731862852582,4.2846,233.39,233.3,19.03136824]
[1731862852997,4.2846,233.39,233.27,15.0039]
[1731862852998,19.03136824,233.38,233.27,15.0039]
[1731862853206,19.03136824,233.38,233.28,19.03136824]
[1731862853505,19.03136824,233.38,233.3,19.03136824]
[1731862854409,4.285,233.37,233.3,19.03136824]
[1731862854705,4.285,233.37,233.3,23.31756824]
[1731862855303,0.12549,233.41,233.32,19.03136824]
[1731862855484,31.51026824,233.44,233.34,19.03136824]
[1731862855689,4.2842,233.42,233.36,19.03136824]
[1731862855889,4.2842,233.42,233.34,19.03136824]
[1731862857907,4.2842,233.42,233.34,23.31686824]
[1731862858282,4.2842,233.42,233.34,26.89917148]
[1731862859690,16.18397148,233.42,233.34,26.89917148]
[1731862859896,11.89977148,233.38,233.31,4.286]
[1731862860412,11.89977148,233.38,233.29,33.55418863]
[1731862860585,0.25098,233.41,233.29,6.65211715]
[1731862860586,11.89977148,233.34,233.29,6.65211715]
[1731862861086,11.89977148,233.36,233.29,6.65211715]
[1731862861294,11.89977148,233.4,233.31,11.89977148]
[1731862861491,0.12549,233.41,233.33,11.89977148]
[1731862861992,4.2844,233.41,233.33,16.18547148]
[1731862863108,4.2844,233.41,233.33,26.89987148]
[1731862863309,4.284,233.43,233.35,11.89977148]
[1731862863611,12.3906,233.5,233.39,11.89977148]
[1731862863793,11.89977148,233.52,233.43,11.89977148]